bitfinex/quotes_ETHUSD_20250404
["timestamp","ask_amount","ask_price","bid_price","bid_amount"]
[1743787868579,5.56111,1798.2,1798.1,0.05]
[1743787868779,9.33071,1798.2,1798.1,0.05]
[1743787869572,3.0,1798.2,1798.1,5.61142]
[1743787869766,5.827,1798.2,1798.1,0.05]
[1743787869998,5.827,1798.2,1798.1,5.61142]
[1743787870167,3.0,1798.5,1798.2,5.56102]
[1743787870574,3.0,1798.5,1798.2,6.31227]
[1743787870869,5.56057,1798.4,1798.1,5.6114]
[1743787871404,11.12129,1798.4,1798.1,0.05]
[1743787871575,5.56096,1798.3,1798.1,0.05]
[1743787871780,6.5789,1798.2,1798.1,0.05]
[1743787871970,5.827,1798.2,1798.1,0.05]
[1743787872176,5.827,1798.2,1798.1,5.61142]
[1743787872798,5.827,1798.2,1798.1,0.05]
[1743787875137,11.38811,1798.2,1798.1,0.05]
[1743787875284,13.083003,1798.2,1798.1,0.05]
[1743787876391,16.083003,1798.2,1798.1,0.05]
[1743787877641,17.456503,1798.2,1798.1,0.05]
[1743787877844,21.65489487,1798.2,1798.1,0.05]
[1743787877986,21.65489487,1798.2,1798.1,1e-05]
[1743787878509,21.10489487,1798.2,1798.1,1e-05]
[1743787878709,21.65489487,1798.2,1798.1,1e-05]
[1743787880715,5.5638,1797.4,1797.1,0.8055]
[1743787880915,5.56407,1797.3,1797.0,5.56476]
[1743787881406,5.56407,1797.3,1796.9,6.37047]
[1743787881602,5.56407,1797.3,1796.7,0.7971]
[1743787881603,0.8212,1797.2,1796.7,0.7971]
[1743787881820,11.13008,1797.0,1796.6,11.13195]
[1743787882028,11.13008,1797.0,1796.5,0.7971]
[1743787882029,5.828,1796.9,1796.7,11.13107]
[1743787882410,5.828,1796.9,1796.7,5.56546]
[1743787883309,5.828,1796.9,1796.8,5.56544]
[1743787883831,5.828,1796.9,1796.8,6.35264]
[1743787884028,6.33897,1797.6,1796.9,5.56504]
[1743787884227,5.827,1797.5,1797.2,5.5641]
[1743787884416,3.0,1797.4,1797.2,5.5641]
[1743787884617,8.56363,1797.4,1797.1,5.56446]
[1743787884822,5.56424,1797.2,1796.8,6.35257]
[1743787885012,5.828,1797.1,1796.9,5.56512]
[1743787885339,11.39252,1797.1,1796.8,6.35257]
[1743787885538,5.828,1797.1,1796.9,11.13006]
[1743787885747,5.828,1797.1,1797.0,5.56483]
[1743787886171,5.828,1797.1,1796.9,5.56498]
[1743787886471,5.828,1797.1,1797.0,5.56483]
[1743787886740,5.56502,1797.0,1796.6,6.36017]
[1743787886950,5.56534,1796.9,1796.5,5.56624]
[1743787887308,5.56558,1796.8,1796.5,5.56624]
[1743787887645,5.829,1796.7,1796.5,11.13248]
[1743787887953,5.829,1796.7,1796.6,5.56606]
[1743787889618,5.829,1796.7,1796.4,0.7942]
[1743787889619,3.0,1796.6,1796.4,6.36077]
[1743787889856,3.0,1796.6,1796.3,5.56687]
[1743787890014,3.41621444,1796.6,1796.3,5.56687]
[1743787890220,3.41621444,1796.6,1796.3,5.56684]
[1743787890835,3.41621444,1796.6,1796.4,5.56668]
[1743787891042,4.61520944,1796.6,1796.4,11.13324]
[1743787891240,3.0,1796.6,1796.4,11.13324]
[1743787891436,3.0,1796.6,1796.4,5.56656]
[1743787891636,3.0,1796.6,1796.3,5.56694]
[1743787891637,5.56653,1796.5,1796.1,6.40045]
[1743787891838,8.56617,1796.6,1796.1,0.8331]
[1743787892018,7.183767,1796.5,1796.2,5.5672]
[1743787892620,1.617117,1796.5,1796.2,11.13436]
[1743787892953,0.856617,1796.5,1796.3,5.56698]
[1743787893116,0.856617,1796.5,1796.2,5.56716]
[1743787893649,0.856617,1796.5,1796.3,5.56699]
[1743787893811,0.856617,1796.5,1796.2,5.56713]
[1743787894283,8.97395411,1796.6,1796.2,5.56713]
[1743787894284,0.8004,1796.9,1796.2,5.5673]
[1743787894478,0.8004,1797.1,1796.8,5.56519]
[1743787894767,5.829,1797.0,1796.8,5.56531]
[1743787894972,11.39385,1797.0,1796.7,6.36463]
[1743787895316,5.829,1797.0,1796.9,5.56513]
[1743787895825,5.829,1797.3,1797.1,5.56433]
[1743787896082,3.0,1797.1,1796.7,6.3646]
[1743787896376,9.39304,1797.1,1796.7,6.36456]
[1743787896571,9.39298,1797.1,1796.7,6.36449]
[1743787896778,0.939298,1797.0,1796.6,5.56591]
[1743787896991,5.829,1796.9,1796.8,5.56544]
[1743787897480,5.829,1796.9,1796.8,6.34534]
[1743787897778,5.829,1797.2,1797.0,11.12941]
[1743787898142,8.829,1797.2,1797.1,5.56452]
[1743787898345,25.8129,1797.4,1797.1,11.12904]
[1743787898557,11.39303,1797.3,1796.8,6.34529]
[1743787898875,11.39303,1797.3,1797.1,5.56452]
[1743787898876,5.829,1797.3,1797.1,5.56452]
[1743787899742,6.24385541,1797.3,1797.1,11.1289]
[1743787899952,5.829,1797.3,1797.1,5.56438]
[1743787900745,5.829,1797.3,1797.1,11.1288]
[1743787900945,5.829,1797.3,1797.2,5.56421]
[1743787901121,0.7728,1797.7,1797.2,6.38719]
[1743787901325,6.23798466,1797.6,1797.4,5.56355]
[1743787901553,3.0,1797.5,1797.4,5.56355]
[1743787901980,5.829,1797.6,1797.5,5.56328]
[1743787903161,25.7874,1798.1,1797.9,5.56191]
[1743787903355,5.828,1798.0,1797.9,5.56191]
[1743787903960,8.828,1798.0,1797.9,5.56191]
[1743787904362,5.778,1798.0,1797.8,5.56222]
[1743787904527,5.778,1798.0,1797.9,5.56204]
[1743787904727,5.778,1798.0,1797.8,5.56222]
[1743787904945,6.3558,1798.0,1797.7,5.56252]
[1743787905150,6.3558,1798.0,1797.7,5.56249]
[1743787905350,5.778,1798.0,1797.7,5.56249]
[1743787905755,6.36497,1797.9,1797.5,5.73699429]
[1743787905946,6.36497,1797.9,1797.5,11.12627]
[1743787906563,0.7817,1797.7,1796.9,0.7857]
[1743787906764,0.7817,1797.7,1796.9,5.56503]
[1743787906765,5.56359,1797.4,1796.9,5.56503]
[1743787906963,9.120269,1797.3,1797.0,0.1738671]
[1743787907165,5.827,1797.2,1797.0,0.1738671]
[1743787907376,5.827,1797.2,1797.0,5.56478]
[1743787907871,5.827,1797.2,1797.1,5.56452]
[1743787908482,5.827,1797.2,1797.1,6.34042]
[1743787908682,5.56269,1797.7,1797.3,5.56386]
[1743787908839,3.0,1797.5,1797.3,5.56377]
[1743787909371,3.0,1797.5,1797.1,6.34041]
[1743787909537,14.12674,1797.5,1797.1,6.34041]
[1743787910065,3.0,1797.5,1797.2,5.56411]
[1743787910269,8.56332,1797.5,1797.1,6.51412428]
[1743787910475,5.56362,1797.4,1797.1,6.34025]
[1743787910680,3.0,1797.5,1797.2,5.56409]
[1743787910981,5.56154,1798.1,1797.7,5.56241]
[1743787910982,5.827,1797.9,1797.7,5.56241]
[1743787911178,0.762,1798.5,1797.8,6.33245]
[1743787911381,5.827,1798.6,1798.3,5.56061]
[1743787911579,6.3213,1798.8,1798.4,5.56036]
[1743787911755,3.0,1798.6,1798.3,11.1213]
[1743787912076,3.762,1798.8,1798.5,5.55994]
[1743787912378,5.827,1798.7,1798.5,5.55997]
[1743787912790,5.827,1798.7,1798.4,5.56041]
[1743787913225,5.827,1798.7,1798.5,5.56001]
[1743787913605,8.827,1798.7,1798.6,5.55987]
[1743787913898,5.827,1798.7,1798.5,5.56]
[1743787914266,5.827,1798.7,1798.5,11.12005]
[1743787914469,5.825,1798.8,1798.6,5.55972]
[1743787914666,5.55833,1799.1,1798.5,1.112005]
[1743787914875,5.825,1799.0,1798.8,5.55919]
[1743787915251,5.825,1799.0,1798.8,5.55908]
[1743787915466,5.825,1799.1,1798.9,5.55879]
[1743787915670,5.825,1799.1,1799.0,5.55864]
[1743787915882,5.825,1799.1,1798.9,5.55879]
[1743787916302,5.825,1799.1,1799.0,5.55864]
[1743787916501,5.825,1799.1,1798.9,5.55879]
[1743787916671,5.825,1799.1,1798.7,5.55928]
[1743787916872,5.825,1799.1,1798.9,5.55894]
[1743787916873,6.7075,1799.1,1798.9,5.55894]
[1743787917073,6.7075,1799.1,1798.8,5.55919]
[1743787917305,6.7075,1799.1,1798.8,11.11825]
[1743787917515,6.7075,1799.1,1798.8,5.55906]
[1743787917885,3.0,1799.0,1798.7,5.55953]
[1743787918098,3.97075,1799.0,1798.8,5.55924]
[1743787918421,3.97075,1799.0,1798.7,5.5594]
[1743787920179,3.97075,1799.0,1798.6,0.8142]
[1743787920380,5.55899,1798.9,1798.5,11.12003]
[1743787920591,10.36188,1799.0,1798.6,5.55975]
[1743787920809,1.036188,1798.9,1798.4,0.7777]
[1743787921013,3.97075,1799.0,1798.7,5.55944]
[1743787921309,3.97075,1799.0,1798.6,5.55984]
[1743787921508,5.55896,1798.9,1798.5,5.56008]
[1743787921714,11.11814,1798.9,1798.5,5.56008]
[1743787921916,5.55896,1798.9,1798.5,5.56008]
[1743787922079,0.555896,1798.8,1798.5,5.56008]
[1743787922279,3.97075,1799.0,1798.7,5.55957]
[1743787922475,0.8166,1798.9,1798.4,0.7777]
[1743787922729,0.8166,1798.9,1798.2,5.56109]
[1743787922730,5.56067,1798.4,1798.2,0.7918]
[1743787922939,5.822,1798.4,1798.1,5.56124]
[1743787923232,11.38253,1798.4,1798.0,5.56165]
[1743787923525,5.56157,1798.1,1797.7,5.56252]
[1743787923741,5.822,1798.0,1797.6,6.37695]
[1743787923901,5.822,1798.0,1797.7,5.5625]
[1743787924411,5.822,1798.0,1797.6,6.37679]
[1743787924625,5.822,1798.0,1797.7,5.56248]
[1743787924923,5.822,1798.3,1798.0,5.5617]
[1743787925130,5.822,1798.3,1798.1,5.56141]
[1743787925275,11.38282,1798.3,1797.9,5.56197]
[1743787925481,5.56155,1798.1,1797.7,5.56265]
[1743787925720,5.56134,1798.2,1797.8,5.56207]
[1743787926029,5.822,1798.3,1798.1,5.56115]
[1743787926392,3.0,1798.4,1798.1,5.56115]
[1743787926592,5.822,1798.3,1798.0,0.05561119]
[1743787926924,5.56019,1798.5,1798.2,5.56109]
[1743787927132,6.698409,1798.5,1798.1,5.56142]
[1743787927315,5.56019,1798.5,1798.1,11.12267]
[1743787927489,11.38192,1798.6,1798.2,5.56108]
[1743787927684,0.7551,1798.9,1798.6,5.55977]
[1743787927886,5.822,1798.9,1798.6,11.1195]
[1743787928231,5.822,1798.9,1798.6,5.55973]
[1743787928432,5.822,1798.9,1798.7,5.55954]
[1743787928937,5.822,1798.9,1798.7,5.55939]
[1743787929302,5.821,1799.1,1798.8,5.55926]
[1743787929506,5.821,1799.2,1799.0,5.55864]
[1743787930605,5.821,1799.2,1798.9,5.55895]
[1743787930756,5.55853,1799.1,1798.7,11.68034832]
[1743787930960,5.55853,1799.1,1798.7,6.12090832]
[1743787931116,5.55852,1799.1,1798.7,6.12090832]
[1743787931573,3.0,1799.1,1798.1,4.19839187]
[1743787931858,5.55957,1798.7,1798.4,5.56048]
[1743787932009,5.821,1798.7,1798.4,5.56038]
[1743787932365,5.821,1798.7,1798.3,0.7901]
[1743787932366,11.38068,1798.7,1798.3,0.7901]
[1743787932570,3.0,1798.6,1798.3,6.35066]
[1743787932729,9.998098,1798.6,1798.2,5.56098]
[1743787932923,5.5602,1798.5,1798.2,5.56098]
[1743787933259,5.56084,1798.3,1798.0,5.73546457]
[1743787933430,5.82,1798.2,1798.0,0.17375457]
[1743787933631,11.38115,1798.2,1797.9,5.562]
[1743787934160,5.82,1798.2,1798.0,5.56158]
[1743787934373,12.15517,1798.2,1797.8,5.5623]
[1743787934572,5.56172,1798.1,1797.7,6.33692]
[1743787934857,5.56222,1797.9,1797.5,6.36123]
[1743787935032,5.82,1797.8,1797.5,6.36123]
[1743787935227,3.0,1797.7,1797.3,0.17382475]
[1743787935459,5.56323,1797.6,1797.3,0.17382475]
[1743787935621,3.0,1797.7,1797.2,5.56401]
[1743787935818,3.0,1797.5,1797.2,5.56401]
[1743787936024,3.0,1797.7,1797.4,5.56358]
[1743787936248,8.56266,1797.7,1797.3,5.56381]
[1743787936450,8.56266,1797.7,1797.3,5.5637]
[1743787936768,3.0,1797.4,1797.0,6.3229]
[1743787936994,5.56434,1797.2,1796.8,5.56536]
[1743787937359,3.0,1797.2,1796.8,5.62091975]
[1743787937547,3.0,1797.2,1796.9,11.12988]
[1743787937902,3.0,1797.2,1796.1,5.61752]
[1743787938072,5.8648,1797.1,1796.6,5.56595]
[1743787938250,8.56422,1797.2,1796.7,5.56548]
[1743787938455,8.98218479,1797.2,1796.7,5.56548]
[1743787938698,5.56465,1797.1,1796.7,5.56548]
[1743787938853,5.56453,1797.1,1796.7,5.56548]
[1743787939052,5.56484,1797.0,1796.6,5.56606]
[1743787939256,5.821,1796.9,1796.6,6.679262]
[1743787939598,5.821,1796.9,1796.6,6.679112]
[1743787939752,5.821,1796.9,1796.6,5.56589]
[1743787939948,11.38616,1796.9,1796.5,5.56637]
[1743787940175,5.821,1796.9,1796.5,11.13274]
[1743787940487,5.821,1796.9,1796.6,5.56604]
[1743787940693,5.821,1796.9,1796.6,5.56588]
[1743787940995,5.821,1796.9,1796.7,5.56555]
[1743787941167,8.822,1797.2,1796.8,5.56544]
[1743787941368,5.56457,1797.1,1796.7,5.56555]
[1743787941700,14.38629,1797.2,1796.7,5.56553]
[1743787941880,14.12881,1797.2,1796.7,5.56553]
[1743787942051,5.822,1797.1,1796.8,5.56538]
[1743787942252,5.822,1797.1,1796.9,5.56499]
[1743787942495,3.0,1797.2,1796.8,0.8174]
[1743787942674,5.56326,1797.6,1797.2,5.5642]
[1743787942675,5.822,1797.3,1797.2,5.5642]
[1743787942880,5.822,1797.3,1797.1,5.56428]
[1743787943078,5.822,1797.3,1797.1,6.67719]
[1743787943264,5.822,1797.3,1797.1,1.11291]
[1743787943465,5.822,1797.3,1797.0,5.56482]
[1743787943703,5.822,1797.3,1797.0,11.12944]
[1743787943881,5.822,1797.3,1797.0,11.12933]
[1743787944080,5.822,1797.3,1797.0,5.56462]
[1743787944290,5.822,1797.3,1797.1,5.56449]
[1743787944601,5.822,1797.3,1797.0,5.56462]
[1743787944761,5.822,1797.3,1797.0,11.12925]
[1743787944962,5.822,1797.3,1797.1,5.5644]
[1743787945173,5.822,1797.3,1797.0,6.677545]
[1743787945497,5.822,1797.3,1797.0,5.56462]
[1743787945683,5.822,1797.3,1797.1,5.56435]
[1743787945870,5.822,1797.3,1797.2,5.56421]
[1743787946458,11.3861,1797.3,1796.8,6.38281]
[1743787946776,5.822,1797.3,1796.8,0.8174]
[1743787946971,8.5644,1797.2,1796.8,6.38268]
[1743787947791,14.95293,1797.2,1796.8,5.56528]
[1743787947987,14.95293,1797.2,1796.7,5.56573]
[1743787947988,5.56458,1797.1,1796.7,5.56573]
[1743787948176,5.56458,1797.1,1796.6,6.36768]
[1743787948177,5.56492,1797.0,1796.6,6.36768]
[1743787948361,5.56492,1797.0,1796.6,6.42332724]
[1743787948710,5.822,1796.9,1796.6,5.56588]
[1743787949375,5.822,1796.9,1796.7,5.56573]
[1743787950505,11.38724,1796.9,1796.3,0.8183]
[1743787950707,5.822,1796.9,1796.6,5.56585]
[1743787951385,5.822,1796.9,1796.3,6.38523]
[1743787951386,3.0,1797.1,1796.8,5.56525]
[1743787952073,8.56452,1797.1,1796.8,5.56525]
[1743787952286,3.0,1797.1,1796.8,5.56525]
[1743787952597,17.77588,1797.2,1796.9,5.62075875]
[1743787952598,5.823,1797.2,1796.9,5.62075875]
[1743787952903,5.822,1797.3,1797.1,11.12891]
[1743787953061,5.822,1797.3,1797.1,5.56441]
[1743787953262,0.7643,1797.5,1797.0,5.56482]
[1743787953500,5.56286,1797.7,1797.6,5.56297]
[1743787953501,0.7791,1797.7,1797.6,5.56297]
[1743787953702,5.823,1797.8,1797.6,5.56284]
[1743787953865,5.56208,1797.9,1797.6,5.56284]
[1743787954065,3.0,1797.8,1797.6,5.56284]
[1743787954260,5.56208,1797.9,1797.6,5.56284]
[1743787954461,12.16397,1798.0,1797.6,5.61842646]
[1743787954686,8.56223,1797.9,1797.5,6.35688]
[1743787954894,3.0,1797.9,1797.5,1.429388]
[1743787955070,3.0,1797.9,1797.6,5.56281]
[1743787955399,3.0,1797.9,1797.6,5.56296]
[1743787955701,3.0,1797.9,1797.5,6.35682]
[1743787955872,0.7791,1798.0,1797.8,5.56213]
[1743787956194,3.0,1798.0,1797.8,5.56213]
[1743787956494,3.0,1798.0,1797.8,11.12429]
[1743787956800,3.0,1798.0,1797.8,12.24232106]
[1743787957173,3.0,1798.0,1797.8,6.68012106]
[1743787957359,8.56182,1798.0,1797.8,1.11799106]
[1743787957561,8.56182,1798.0,1797.7,5.56265]
[1743787958003,8.56182,1798.0,1797.6,5.56286]
[1743787958295,6.38931,1798.3,1797.9,5.56204]
[1743787958470,5.822,1798.2,1798.0,5.56163]
[1743787958675,5.822,1798.2,1797.9,5.56186]
[1743787959582,11.38313,1798.2,1797.9,5.56186]
[1743787959789,5.822,1798.2,1797.9,11.12373]
[1743787959972,5.822,1798.2,1797.9,11.12378]
[1743787960378,5.822,1798.2,1797.8,6.37424]
[1743787960708,5.822,1798.2,1797.9,5.56187]
[1743787960909,5.822,1798.2,1797.9,5.56174]
[1743787961206,5.822,1798.2,1798.0,5.56171]
[1743787961410,5.822,1798.2,1797.9,5.56174]
[1743787961901,5.822,1798.2,1797.9,11.12361]
[1743787962113,5.822,1798.2,1798.0,5.56162]
[1743787962314,5.822,1798.2,1797.9,11.12368]
[1743787962498,5.56153,1798.1,1797.8,5.5623]
[1743787962667,7.343134,1798.2,1797.8,5.56219]
[1743787962668,11.38339,1798.2,1797.8,5.56219]
[1743787963009,5.822,1798.2,1797.9,5.5619]
[1743787963509,5.5616,1798.1,1797.8,5.56228]
[1743787963707,5.5616,1798.1,1797.7,11.12511]
[1743787963867,3.0,1798.1,1798.0,5.56173]
[1743787964065,3.0,1798.3,1798.1,5.5613]
[1743787964499,3.0,1798.4,1798.0,0.7834]
[1743787964808,3.0,1798.4,1796.9,0.1]
[1743787964809,8.56147,1798.1,1797.2,0.7854]
[1743787965106,5.82,1798.0,1797.8,5.56219]
[1743787965311,5.82,1798.0,1797.8,11.12441]
[1743787965507,3.0,1798.1,1797.9,5.56204]
[1743787965807,8.819,1798.3,1798.0,5.56153]
[1743787965967,5.56158,1798.1,1797.7,6.52165725]
[1743787966171,5.56158,1798.1,1797.8,5.56223]
[1743787966411,3.0,1798.1,1797.9,5.56188]
[1743787966566,3.0,1798.1,1797.9,11.12379]
[1743787966766,6.77090019,1798.5,1797.9,1.112379]
[1743787967005,0.8015,1798.5,1798.2,5.56098]
[1743787967180,5.55963,1798.7,1798.3,5.56056]
[1743787967384,6.6392,1798.8,1798.5,5.56003]
[1743787967583,5.819,1798.8,1798.6,5.55987]
[1743787968142,5.819,1798.8,1798.6,5.5597]
[1743787968414,11.37737,1799.1,1798.8,5.55912]
[1743787968614,5.55661,1799.7,1798.6,0.63366]
[1743787968615,25.36177741,1799.9,1798.9,0.05558726]
[1743787968812,0.33977741,1799.9,1799.7,5.55618]
[1743787969020,0.05,1800.9,1800.4,0.7788]
[1743787969222,0.05,1800.9,1800.6,0.7788]
[1743787969522,0.05,1800.9,1800.8,6.33108]
[1743787969668,0.28206951,1801.5,1801.3,6.32935]
[1743787969865,0.05,1801.9,1801.4,5.55123]
[1743787970100,0.05,1801.9,1801.8,5.55]
[1743787970362,0.05,1801.9,1801.8,6.3308]
[1743787970605,0.005,1802.2,1802.1,5.54908]
[1743787971168,0.005,1802.2,1802.0,5.54932]
[1743787971598,0.005,1802.2,1801.8,6.33074]
[1743787971781,0.005,1802.2,1801.7,5.55006]
[1743787972211,0.3055,1802.2,1801.7,5.55006]
[1743787972574,0.3055,1802.2,1801.5,6.886703]
[1743787972765,5.54911,1802.1,1801.6,5.55041]
[1743787972989,8.54957,1802.0,1801.5,0.7809]
[1743787973196,5.846,1801.9,1801.4,5.55115]
[1743787973380,6.7306,1801.9,1801.4,5.55115]
[1743787973914,6.7306,1801.9,1801.5,5.55089]
[1743787974212,12.28045,1801.9,1801.2,5.55161]
[1743787974454,5.55,1801.8,1801.2,5.55183]
[1743787974622,5.862,1802.0,1801.3,4.92996298]
[1743787974769,5.862,1802.0,1801.7,5.5501]
[1743787974971,5.862,1802.0,1801.8,0.1332]
[1743787975178,0.005,1802.2,1801.8,11.23291]
[1743787975374,0.005,1802.2,1801.8,0.1332]
[1743787975576,0.005,1802.2,1801.8,0.70155]
[1743787975802,0.005,1802.2,1802.1,5.54908]
[1743787976549,0.005,1802.2,1801.8,0.70155]
[1743787976731,0.005,1802.2,1801.8,0.1332]
[1743787976908,3.0,1802.1,1801.8,0.1332]
[1743787977108,3.3005,1802.1,1801.8,0.1332]
[1743787977336,4.1331,1802.1,1801.8,0.1332]
[1743787978004,1.1331,1802.1,1801.8,0.1332]
[1743787978199,0.8326,1802.1,1801.8,0.1332]
[1743787978440,5.874,1802.0,1801.8,0.1332]
[1743787978913,3.0,1801.9,1801.8,0.1332]
[1743787980444,9.89529,1801.9,1801.8,0.1332]
[1743787980603,3.0,1801.4,1800.9,5.55259]
[1743787980833,6.9626,1801.3,1800.8,5.55304]
[1743787981554,6.9626,1801.3,1800.8,5.55293]
[1743787982146,5.55201,1801.2,1800.6,5.55349]
[1743787982342,5.55275,1801.0,1800.2,5.55493]
[1743787982543,6.438275,1800.9,1800.4,5.55431]
[1743787982745,5.883,1800.9,1800.6,5.55363]
[1743787982929,5.883,1800.9,1800.5,5.55381]
[1743787982930,5.891,1800.8,1800.7,5.55316]
[1743787983145,5.891,1800.8,1800.6,5.55365]
[1743787983351,9.64729,1801.3,1800.6,5.55365]
[1743787983533,12.407749,1801.2,1800.6,5.5535]
[1743787983736,3.0,1801.0,1800.7,5.55339]
[1743787983936,3.0,1801.0,1800.8,5.55307]
[1743787984260,5.887,1801.0,1800.5,5.55375]
[1743787984840,5.887,1801.0,1800.8,5.55293]
[1743787985036,5.887,1801.0,1800.8,5.55294]
[1743787985438,5.887,1801.0,1800.7,5.55326]
[1743787985639,5.887,1801.0,1800.7,11.10632]
[1743787985861,5.879,1801.1,1800.7,5.55312]
[1743787986671,0.7956,1801.3,1800.7,0.555312]
[1743787986878,5.874,1801.2,1800.9,5.5526]
[1743787987090,3.0,1801.4,1801.0,5.55229]
[1743787987091,8.874,1801.4,1801.0,5.55229]
[1743787987452,14.42524,1801.4,1800.9,11.10524]
[1743787987652,14.42524,1801.4,1800.9,5.55259]
[1743787987945,8.55208,1801.2,1800.6,6.3652]
[1743787988151,8.55208,1801.2,1799.9,4.37477998]
[1743787988152,8.55263,1801.0,1800.5,5.55396]
[1743787988350,5.874,1800.9,1800.5,5.55396]
[1743787988578,5.874,1800.9,1800.7,5.55335]
[1743787988784,5.874,1800.9,1800.6,5.55345]
[1743787988995,5.869,1800.9,1800.6,5.55345]
[1743787989184,6.4559,1800.9,1800.5,5.554]
[1743787989691,6.4559,1800.9,1800.7,5.55338]
[1743787989892,5.869,1800.9,1800.6,5.55367]
[1743787990393,5.869,1800.9,1800.6,5.55355]
[1743787990574,5.869,1800.9,1800.3,6.33102]
[1743787990779,5.869,1800.9,1800.8,5.55308]
[1743787990983,3.0,1801.1,1800.8,5.55308]
[1743787991199,3.0,1801.1,1800.9,5.55259]
[1743787991506,3.0,1801.1,1800.9,5.55274]
[1743787992274,5.858,1801.2,1800.9,5.55258]
[1743787992474,5.858,1801.2,1801.0,5.55234]
[1743787992691,5.859,1801.3,1800.9,5.55258]
[1743787992903,0.7804,1801.6,1800.9,0.555258]
[1743787993067,11.40713,1801.5,1801.0,5.55234]
[1743787993290,5.856,1801.5,1801.1,5.55202]
[1743787993692,11.40405,1801.5,1801.1,5.55202]
[1743787994406,5.853,1801.5,1801.1,5.55202]
[1743787995006,5.853,1801.5,1801.1,11.10397]
[1743787995216,5.853,1801.5,1801.1,5.55195]
[1743787995419,5.55199,1801.2,1800.6,5.55341]
[1743787995736,3.0,1800.8,1800.4,5.55418]
[1743787995934,3.8192,1801.0,1800.6,5.55362]
[1743787996094,3.0,1800.8,1800.6,5.55362]
[1743787996296,8.875,1800.8,1800.7,0.17355628]
[1743787996829,5.875,1800.8,1800.7,5.72694628]
[1743787997132,5.875,1800.8,1800.7,0.43170683]
[1743787997334,5.875,1800.8,1800.7,6.38981968]
[1743787997837,5.875,1800.8,1800.7,0.83642968]
[1743787998521,5.875,1800.8,1800.7,6.38981968]
[1743787999227,5.875,1800.8,1800.7,0.83642968]
[1743787999596,12.05672175,1800.8,1800.7,0.83642968]
[1743787999993,15.05672175,1800.8,1800.7,0.83642968]
[1743788000528,15.03872175,1800.8,1800.7,0.57827913]
[1743788001030,9.48564175,1800.8,1800.7,0.57827913]
[1743788001230,15.03872175,1800.8,1800.7,0.57827913]
[1743788001731,15.03872175,1800.8,1800.5,6.28e-06]
[1743788001732,6.3443,1800.6,1800.5,6.28e-06]
[1743788001934,5.55487,1800.3,1800.1,0.05]
[1743788002134,5.864,1800.2,1800.1,5.60524]
[1743788002335,5.865,1800.4,1800.3,5.55451]
[1743788002827,24.982,1800.8,1800.4,5.55422]
[1743788002828,5.864,1800.7,1800.4,5.55422]
[1743788003247,5.864,1800.7,1800.5,5.81682184]
[1743788003397,9.78058752,1800.9,1800.6,5.55358]
[1743788003398,1.22751752,1800.9,1800.6,5.55358]
[1743788003594,0.7734,1801.2,1800.6,0.55]
[1743788003827,5.861,1801.1,1800.8,5.55297]
[1743788004040,5.862,1801.2,1800.6,0.55]
[1743788004243,5.862,1801.2,1801.1,5.55216]
[1743788004611,0.41079003,1801.6,1801.5,5.55092]
[1743788004814,0.41079003,1801.6,1801.4,5.55108]
[1743788005018,6.3234,1801.9,1801.4,5.55105]
[1743788005312,0.63234,1801.8,1801.6,5.5505]
[1743788005515,0.7736,1801.9,1801.6,5.55048]
[1743788005718,0.7736,1801.9,1801.7,5.5503]
[1743788005949,5.86,1802.1,1801.7,5.5503]
[1743788006149,25.8087,1802.2,1801.8,5.54997]
[1743788006445,9.817418,1802.2,1801.9,11.09906]
[1743788006777,9.817418,1802.2,1801.8,0.26296184]
[1743788006778,5.54912,1802.1,1801.8,0.26296184]
[1743788006961,3.0,1802.0,1801.8,0.26296184]
[1743788007162,15.24089,1801.9,1801.8,0.26296184]
[1743788007379,8.55016,1801.8,1801.4,5.55093]
[1743788007684,0.855016,1801.7,1801.3,5.55137]
[1743788007842,5.858,1801.9,1801.7,5.55008]
[1743788008278,5.857,1802.0,1801.8,5.54988]
[1743788008629,5.857,1802.0,1801.8,5.54983]
[1743788008832,5.857,1802.0,1801.9,5.54969]
[1743788009769,5.85,1802.1,1801.9,5.81239959]
[1743788010180,5.852,1802.2,1802.0,5.54938]
[1743788010364,0.8902,1802.2,1802.0,5.54938]
[1743788010675,5.85,1802.2,1802.1,0.26270959]
[1743788010976,0.005,1802.2,1802.1,0.26270959]
[1743788011566,8.55377,1802.2,1802.1,0.26270959]
[1743788012174,8.55378,1802.2,1801.8,5.55]
[1743788012764,8.55378,1802.2,1801.8,5.54992]
[1743788012965,4.999526,1802.2,1801.8,5.54978]
[1743788013366,10.548486,1802.2,1801.8,11.0996]
[1743788013563,10.548486,1802.2,1801.8,5.54978]
[1743788013871,4.999526,1802.2,1801.9,5.54958]
[1743788014045,4.999526,1802.2,1801.9,11.09895]
[1743788014246,5.826,1802.1,1801.9,5.54947]
[1743788014571,0.005,1802.2,1801.9,5.54947]